bitfinex-derivatives/quotes_BTCF0:USTF0_20250216
["timestamp","ask_amount","ask_price","bid_price","bid_amount"]
[1739731797996,0.50215474,97000.0,96999.0,0.05801021]
[1739731798484,0.50215474,97000.0,96999.0,0.05801036]
[1739731801294,0.50215474,97000.0,96999.0,0.04189637]
[1739731803202,0.50215474,97000.0,96999.0,0.05801036]
[1739731803394,0.86295474,97000.0,96999.0,0.05801036]
[1739731807508,0.65679904,97000.0,96999.0,0.05801036]
[1739731807897,0.29599904,97000.0,96999.0,0.08901036]
[1739731809410,0.50215474,97000.0,96999.0,0.08901036]
[1739731811307,0.50147458,97000.0,96999.0,0.08901036]
[1739731811809,0.50147458,97000.0,96999.0,0.27441674]
[1739731812007,0.50147458,97000.0,96999.0,0.24341674]
[1739731813610,0.50147458,97000.0,96999.0,0.24341646]
[1739731814004,0.50147458,97000.0,96999.0,0.24341665]
[1739731815009,0.50147458,97000.0,96999.0,0.05801027]
[1739731816808,0.50147458,97000.0,96999.0,0.0580151]
[1739731817506,0.50147458,97000.0,96999.0,0.04190111]
[1739731817709,0.50147458,97000.0,96999.0,0.04190149]
[1739731819411,0.55160649,97000.0,96999.0,0.01611596]
[1739731819604,0.55160649,97000.0,96999.0,0.04190113]
[1739731822221,0.55160649,97000.0,96999.0,0.05801123]
[1739731823118,0.55160649,97000.0,96999.0,0.0418969]
[1739731823422,0.50147458,97000.0,96999.0,0.0418969]
[1739731824015,0.50147458,97000.0,96999.0,0.05801146]
[1739731825217,0.50147458,97000.0,96999.0,0.0418969]
[1739731825813,0.50147458,97000.0,96999.0,0.04189796]
[1739731826420,0.50079442,97000.0,96999.0,0.04189796]
[1739731826719,0.50079442,97000.0,96999.0,0.05801255]
[1739731827716,0.29463872,97000.0,96999.0,0.05801255]
[1739731832532,0.29463872,97000.0,96999.0,0.26417035]
[1739731837735,0.29463872,97000.0,96999.0,0.05801255]
[1739731839234,0.29463872,97000.0,96999.0,0.05800909]
[1739731841930,0.29395856,97000.0,96999.0,0.05800909]
[1739731846441,0.29395856,97000.0,96999.0,0.05800743]
[1739731847939,0.29395856,97000.0,96999.0,0.03222722]
[1739731848148,0.29395856,97000.0,96999.0,0.05800683]
[1739731848450,0.29395856,97000.0,96999.0,0.26416463]
[1739731854547,0.29395856,97000.0,96999.0,0.26416268]
[1739731858049,0.29395856,97000.0,96999.0,0.51102475]
[1739731860137,0.29395856,97000.0,96999.0,0.51102473]
[1739731860340,0.29395856,97000.0,96999.0,0.52711077]
[1739731860537,0.29395856,97000.0,96999.0,0.51102473]
[1739731861947,0.29395856,97000.0,96999.0,0.26416266]
[1739731863549,0.29395856,97000.0,96999.0,0.26416299]
[1739731864156,0.29395856,97000.0,96999.0,0.05800519]
[1739731864361,0.65475856,97000.0,96999.0,0.05800519]
[1739731865362,0.86091426,97000.0,96999.0,0.05800519]
[1739731866559,0.86091426,97000.0,96999.0,0.03222636]
[1739731868155,0.2061854,96986.0,96985.0,4e-05]
[1739731868351,0.3608,96986.0,96962.0,0.0327]
[1739731868551,0.3608,96980.0,96962.0,0.0327]
[1739731868751,0.5670195,96970.0,96967.0,0.40070424]
[1739731869262,0.3608,96970.0,96961.0,0.01052958]
[1739731869559,0.2062386,96961.0,96960.0,0.00015472]
[1739731871663,0.2364386,96961.0,96960.0,0.00715472]
[1739731871951,0.2364386,96961.0,96960.0,0.01415472]
[1739731872255,0.2062492,96956.0,96955.0,0.43258937]
[1739731872459,0.2062492,96956.0,96955.0,0.43198937]
[1739731872767,0.2062492,96956.0,96954.0,0.01090399]
[1739731873653,0.2072492,96956.0,96955.0,0.007]
[1739731874356,0.2072492,96956.0,96954.0,0.01790399]
[1739731874564,0.2082492,96956.0,96955.0,0.007]
[1739731874962,0.2072492,96956.0,96955.0,0.007]
[1739731875155,0.2082492,96956.0,96955.0,0.014]
[1739731875556,0.2082492,96956.0,96955.0,0.007]
[1739731875967,0.2072492,96956.0,96955.0,0.007]
[1739731876174,0.2082492,96956.0,96955.0,0.01]
[1739731880088,0.2082492,96956.0,96942.0,0.0321]
[1739731880089,0.01299205,96956.0,96942.0,0.0321]
[1739731880382,0.2062854,96939.0,96938.0,0.03304]
[1739731880571,0.2062854,96939.0,96938.0,0.04916314]
[1739731880874,0.2062854,96939.0,96938.0,0.06528636]
[1739731881670,0.2062854,96939.0,96938.0,0.0652873]
[1739731882273,0.2072854,96939.0,96938.0,0.0722873]
[1739731882583,0.2072854,96939.0,96938.0,0.05616322]
[1739731882787,0.2082854,96939.0,96938.0,0.04916322]
[1739731882984,0.2082854,96939.0,96938.0,0.05616322]
[1739731883278,0.2082854,96939.0,96938.0,0.07228734]
[1739731883470,0.2072854,96939.0,96938.0,0.05616322]
[1739731883668,0.2082854,96939.0,96938.0,0.03928747]
[1739731884685,0.2082854,96939.0,96938.0,0.02316322]
[1739731886081,0.21916521,96939.0,96938.0,0.02316322]
[1739731887294,0.21916521,96939.0,96938.0,0.00704]
[1739731887584,0.2062939,96935.0,96931.0,0.0328]
[1739731887772,0.5670939,96935.0,96931.0,0.0328]
[1739731888570,0.5670939,96935.0,96934.0,0.0161661]
[1739731888968,0.3608,96935.0,96930.0,0.033]
[1739731889169,0.2063131,96926.0,96925.0,0.0333]
[1739731889385,0.2063131,96926.0,96925.0,0.04942645]
[1739731890478,0.2073131,96926.0,96925.0,0.04942645]
[1739731891279,0.2083131,96926.0,96925.0,0.05442645]
[1739731892282,0.2083131,96926.0,96925.0,0.08712645]
[1739731901086,0.2083131,96926.0,96925.0,0.0871263]
[1739731901883,0.2083131,96926.0,96925.0,0.0871261]
[1739731902383,0.2083131,96926.0,96925.0,0.08712629]
[1739731906901,0.2083131,96926.0,96925.0,0.071]
[1739731908997,0.2083131,96926.0,96925.0,0.0383]
[1739731909300,0.2063237,96921.0,96920.0,0.03224]
[1739731909596,0.2063237,96921.0,96917.0,4e-05]
[1739731909597,0.2063301,96918.0,96917.0,4e-05]
[1739731909786,0.5671301,96918.0,96917.0,4e-05]
[1739731910100,0.2063322,96917.0,96916.0,0.00015472]
[1739731912300,0.2083322,96917.0,96916.0,0.00115472]
[1739731912596,0.2083322,96917.0,96916.0,1e-08]
[1739731916402,0.25850138,96917.0,96916.0,1e-08]
[1739731923099,0.2083322,96917.0,96916.0,1e-08]
[1739731928507,0.002,96917.0,96896.0,0.0637]
[1739731928713,0.3608,96897.0,96881.0,0.2064085]
[1739731928910,0.3608,96887.0,96881.0,0.2064085]
[1739731929110,0.2064031,96884.0,96883.0,0.2064029]
[1739731929424,0.3608,96887.0,96873.0,0.36887696]
[1739731929425,0.3608,96887.0,96886.0,0.2063982]
[1739731930715,0.3618,96887.0,96886.0,0.2063982]
[1739731931202,0.3628,96887.0,96886.0,0.2063982]
[1739731932516,0.3628,96887.0,96886.0,0.22252945]
[1739731935514,0.002,96887.0,96886.0,0.58332945]
[1739731935721,0.002,96887.0,96886.0,0.22252945]
[1739731935916,0.002,96887.0,96886.0,0.22252812]
[1739731936418,0.002,96887.0,96886.0,0.2063982]
[1739731937813,0.002,96887.0,96882.0,0.0951]
[1739731938009,0.2064009,96885.0,96882.0,0.0951]
[1739731938214,0.2064009,96885.0,96882.0,0.3015063]
[1739731938414,0.3628,96887.0,96885.0,0.2063986]
[1739731938415,0.36408,96887.0,96885.0,0.2063986]
[1739731938614,0.3628,96887.0,96885.0,0.2063986]
[1739731939017,0.3618,96887.0,96885.0,0.2063986]
[1739731939219,0.3608,96887.0,96885.0,0.2063986]
[1739731939423,0.3618,96887.0,96885.0,0.2063986]
[1739731939813,0.3628,96887.0,96885.0,0.2063986]
[1739731941010,0.002,96887.0,96885.0,0.2063986]
[1739731941216,0.002,96887.0,96886.0,0.01612986]
[1739731941714,0.002,96887.0,96886.0,0.03225954]
[1739731947028,0.002,96887.0,96886.0,0.23865784]
[1739731948131,0.002,96887.0,96886.0,0.22252798]
[1739731948525,0.002,96887.0,96886.0,0.2063983]
[1739731950522,0.2064018,96885.0,96882.0,0.2064064]
[1739731950831,0.2064018,96885.0,96883.0,0.01613075]
[1739731951125,0.2064018,96885.0,96879.0,0.30883179]
[1739731951333,0.2064018,96885.0,96882.0,0.2064063]
[1739731951929,0.2064018,96885.0,96883.0,0.2064033]
[1739731952130,0.0644,96887.0,96885.0,0.2063987]
[1739731952431,0.0644,96887.0,96886.0,0.01613112]
[1739731952631,0.0644,96887.0,96885.0,0.2063987]
[1739731952933,0.0634,96887.0,96886.0,0.01613116]
[1739731953525,0.0624,96887.0,96886.0,0.01613116]
[1739731953831,0.0634,96887.0,96886.0,0.01613116]
[1739731954331,0.0644,96887.0,96886.0,0.01613116]
[1739731956234,0.2707961,96887.0,96886.0,0.01613116]
[1739731956420,0.2707961,96887.0,96883.0,0.2064046]
[1739731956625,0.2064025,96884.0,96879.0,0.0108913]
[1739731956830,0.0644,96887.0,96869.0,0.0623]
[1739731957030,0.2064049,96883.0,96869.0,0.0623]
[1739731958521,0.2074049,96883.0,96874.0,0.01080105]
[1739731958719,0.032,96882.0,96874.0,0.01080105]
[1739731959127,0.2384077,96882.0,96878.0,0.2064133]
[1739731959322,0.2384077,96882.0,96879.0,0.2064129]
[1739731959729,0.2384077,96882.0,96880.0,0.2064105]
[1739731960231,0.2394077,96882.0,96880.0,0.2064105]
[1739731960425,0.2394077,96882.0,96874.0,0.01080105]
[1739731960625,0.2394077,96882.0,96881.0,0.2064089]
[1739731960829,0.6002077,96882.0,96881.0,0.2064089]
[1739731961735,0.6012077,96882.0,96881.0,0.2064089]
[1739731962630,0.2064134,96879.0,96874.0,0.01080105]
[1739731963130,0.2064134,96879.0,96877.0,0.2064156]
[1739731964429,0.2084134,96879.0,96877.0,0.2064156]
[1739731965036,0.2074134,96879.0,96877.0,0.2064156]
[1739731965239,0.2084134,96879.0,96877.0,0.2064156]
[1739731966642,0.2064196,96876.0,96874.0,0.01080105]
[1739731966836,0.061,96875.0,96874.0,0.01080105]
[1739731968444,0.062,96875.0,96874.0,0.01080105]
[1739731968629,0.063,96875.0,96874.0,0.01080105]
[1739731971537,0.063,96875.0,96874.0,0.02693365]
[1739731974637,0.063,96875.0,96874.0,0.01080105]
[1739731976943,0.063,96875.0,96874.0,0.21722485]
[1739731977649,0.2694217,96875.0,96874.0,0.01080105]
[1739731978749,0.2694217,96875.0,96874.0,0.02693392]
[1739731981535,0.2694217,96875.0,96874.0,0.01080105]
[1739731983551,0.063,96875.0,96874.0,0.21722485]
[1739731984946,0.063,96875.0,96874.0,0.23335756]
[1739731985647,0.063,96875.0,96874.0,0.02693376]
[1739731985846,0.2694216,96875.0,96874.0,0.02693376]
[1739731986151,0.2064431,96865.0,96861.0,0.30906181]
[1739731986350,0.0956,96864.0,96863.0,0.2064472]
[1739731986548,0.0319,96864.0,96863.0,0.21705832]
[1739731986752,0.0319,96864.0,96863.0,0.57785832]
[1739731987147,0.0319,96864.0,96863.0,0.60945832]
[1739731987546,0.0329,96864.0,96863.0,0.60945832]
[1739731989552,0.0339,96864.0,96863.0,0.60945832]
[1739731990842,0.0339,96864.0,96863.0,0.64025832]
[1739731991946,0.0339,96864.0,96863.0,0.27945832]
[1739731998547,0.0339,96864.0,96863.0,0.64025832]
[1739732001555,0.0339,96864.0,96863.0,0.94976741]
[1739732001862,0.0339,96864.0,96863.0,0.96590013]
[1739732002962,0.0339,96864.0,96863.0,0.94976741]
[1739732004367,0.0339,96864.0,96863.0,0.52656741]
[1739732004568,0.0339,96864.0,96863.0,0.21705832]
[1739732005960,0.0339,96864.0,96863.0,0.23319219]
[1739732006971,0.0339,96864.0,96863.0,0.21705832]
[1739732007967,0.0339,96864.0,96863.0,0.23319227]
[1739732013666,0.0339,96864.0,96863.0,0.23319241]
[1739732016179,0.0339,96864.0,96863.0,0.23319239]
[1739732017877,0.0339,96864.0,96863.0,0.2331924]
[1739732019773,0.0339,96864.0,96863.0,0.21705832]
[1739732019972,0.0339,96864.0,96863.0,0.23319241]
[1739732024275,0.0339,96864.0,96863.0,0.54275256]
[1739732024476,0.0339,96864.0,96863.0,0.54275233]
[1739732025986,0.0339,96864.0,96863.0,0.54275239]
[1739732026372,0.0339,96864.0,96863.0,0.90355239]
[1739732026577,0.0339,96864.0,96863.0,0.54275239]
[1739732028277,0.0339,96864.0,96863.0,0.23319224]
[1739732029975,0.0339,96864.0,96863.0,0.25900484]
[1739732030975,0.0339,96864.0,96863.0,0.23319224]
[1739732032284,0.0339,96864.0,96863.0,0.23319103]
[1739732032482,0.0339,96864.0,96863.0,0.21705832]
[1739732032679,0.0339,96864.0,96863.0,0.23319127]
[1739732034188,0.0339,96864.0,96863.0,0.23319149]
[1739732045887,0.0339,96864.0,96863.0,0.2331916]
[1739732047296,0.0339,96864.0,96863.0,0.0267444]
[1739732047887,0.0339,96864.0,96863.0,0.02674512]
[1739732048096,0.0658,96864.0,96863.0,0.01061112]
[1739732048297,0.0658,96864.0,96859.0,0.36887696]
[1739732048495,0.0658,96864.0,96859.0,0.36835696]
[1739732048695,0.2722458,96864.0,96859.0,0.36835696]
[1739732048997,0.2712458,96864.0,96859.0,0.36835696]
[1739732049308,0.2722458,96864.0,96859.0,0.36835696]
[1739732049802,0.2712458,96864.0,96863.0,0.30959297]
[1739732050003,0.2722458,96864.0,96863.0,0.30959297]
[1739732051702,0.2712458,96864.0,96863.0,0.30959297]
[1739732051998,0.2722458,96864.0,96863.0,0.30959297]
[1739732054314,0.2722458,96864.0,96859.0,0.22007206]
[1739732054315,0.206448,96863.0,96859.0,0.22007206]
[1739732054495,0.2064494,96862.0,96859.0,0.01361726]
[1739732054701,0.0329,96861.0,96860.0,0.2064532]
[1739732056300,0.0329,96861.0,96860.0,0.22258789]
[1739732056506,0.0339,96861.0,96860.0,0.01613469]
[1739732056906,0.0349,96861.0,96860.0,0.01613469]
[1739732064502,0.0349,96861.0,96860.0,0.01613391]
[1739732064699,0.0349,96861.0,96859.0,0.21960193]
[1739732064904,0.0349,96861.0,96860.0,0.22258751]
[1739732068512,0.0339,96861.0,96860.0,0.22258751]
[1739732068814,0.0349,96861.0,96860.0,0.22258751]
[1739732073115,0.0349,96861.0,96860.0,0.2225879]
[1739732075110,0.002,96861.0,96860.0,0.2225879]
[1739732076720,0.002,96861.0,96860.0,0.22258721]
[1739732086917,0.002,96861.0,96860.0,0.2064536]
[1739732087114,0.002,96861.0,96860.0,0.22258721]
[1739732088420,0.002,96861.0,96860.0,0.248401]
[1739732089322,0.002,96861.0,96860.0,0.26453459]
[1739732089622,0.002,96861.0,96860.0,0.26453453]
[1739732090616,0.002,96861.0,96860.0,0.23872078]
[1739732090819,0.002,96861.0,96860.0,0.59952078]
[1739732093517,0.002,96861.0,96860.0,0.58338719]
[1739732094819,0.002,96861.0,96860.0,0.89305582]
[1739732095215,0.002,96861.0,96860.0,0.89305554]
[1739732097125,0.002,96861.0,96860.0,0.87692223]
[1739732097334,0.002,96861.0,96860.0,0.89305554]
[1739732097720,0.002,96861.0,96860.0,0.89305555]
[1739732099323,0.002,96861.0,96860.0,0.89305553]
[1739732102622,0.002,96861.0,96860.0,0.5672536]
[1739732102821,0.002,96861.0,96860.0,0.58338692]
[1739732105222,0.002,96861.0,96860.0,0.5672536]
[1739732105421,0.002,96861.0,96860.0,0.58338692]
[1739732109936,0.002,96861.0,96860.0,0.37693332]
[1739732110936,0.002,96861.0,96860.0,0.37693431]
[1739732111840,0.002,96861.0,96860.0,0.3608]
[1739732112742,0.002,96861.0,96860.0,0.5672537]
[1739732113839,0.002,96861.0,96860.0,0.58338801]
[1739732114439,0.002,96861.0,96860.0,0.22258801]
[1739732115738,0.002,96861.0,96860.0,0.58338801]
[1739732116938,0.5692515,96861.0,96859.0,0.01314643]
[1739732117134,0.5692515,96861.0,96860.0,0.01613501]
[1739732117738,0.3628,96861.0,96860.0,0.01613519]
[1739732117939,0.3618,96861.0,96860.0,0.32580476]
[1739732118141,0.3628,96861.0,96860.0,0.32580476]
[1739732120029,0.3628,96861.0,96860.0,0.53225836]
[1739732120030,0.002,96861.0,96860.0,0.53225836]
[1739732121044,0.002,96861.0,96860.0,0.53225703]
[1739732122046,0.002,96861.0,96860.0,0.22258746]
[1739732127451,0.002,96861.0,96860.0,0.22258795]
[1739732129148,0.002,96861.0,96860.0,0.2064536]
[1739732129348,0.002,96861.0,96860.0,0.22258749]
[1739732129548,0.002,96861.0,96860.0,0.53215228]
[1739732129739,0.002,96861.0,96860.0,0.55796617]
[1739732131751,0.002,96861.0,96860.0,0.53215215]
[1739732132651,0.002,96861.0,96860.0,0.22258736]
[1739732134050,0.03018,96879.0,96874.0,0.2064237]
[1739732134348,0.03018,96879.0,96874.0,0.22255746]
[1739732134738,8e-05,96879.0,96874.0,0.22255746]
[1739732134951,0.15437803,96890.0,96889.0,0.2063918]
[1739732135249,0.15437803,96890.0,96889.0,0.58332556]
[1739732136047,0.0328,96895.0,96894.0,0.2063812]
[1739732136343,0.0328,96895.0,96894.0,0.22251496]
[1739732136847,0.0328,96895.0,96894.0,0.2063812]
[1739732137649,0.0328,96895.0,96894.0,0.2083812]
[1739732140446,0.0328,96895.0,96894.0,0.22131048]
[1739732143259,0.0328,96895.0,96894.0,0.58211048]
[1739732144749,0.0328,96895.0,96894.0,0.22131048]
[1739732145147,0.0655,96895.0,96894.0,0.22131048]
[1739732145554,0.0655,96895.0,96894.0,0.01492928]
[1739732146452,0.2063812,96894.0,96893.0,0.18495381]
[1739732146660,0.2063812,96894.0,96893.0,0.08515381]
[1739732147850,0.0655,96895.0,96886.0,0.24687223]
[1739732148060,0.2063864,96892.0,96886.0,0.24687223]
[1739732148859,0.2063864,96892.0,96885.0,0.0001548]
[1739732149559,0.2073864,96892.0,96885.0,0.2065543]
[1739732149750,0.032,96891.0,96885.0,0.2065543]
[1739732150350,0.5671982,96886.0,96885.0,0.0001548]
[1739732151447,0.5681982,96886.0,96885.0,0.0001548]
[1739732151847,0.206411,96880.0,96877.0,0.00016]
[1739732152358,0.2193279,96880.0,96877.0,0.00016]
[1739732153757,0.2203279,96880.0,96877.0,0.00016]
[1739732153954,0.207411,96880.0,96877.0,0.00016]
[1739732154658,0.001,96880.0,96877.0,0.00016]
[1739732154857,0.001,96880.0,96874.0,4e-05]
[1739732154858,0.3608,96878.0,96874.0,4e-05]
[1739732155059,0.5672156,96878.0,96874.0,4e-05]
[1739732155763,0.5672156,96878.0,96874.0,0.206463]
[1739732156257,0.3618,96878.0,96874.0,4e-05]
[1739732156464,0.2064217,96875.0,96874.0,4e-05]
[1739732156661,0.36400001,96878.0,96870.0,0.01263629]
[1739732156852,0.3608,96877.0,96868.0,0.06446477]
[1739732157160,0.5672345,96869.0,96868.0,0.06446477]
[1739732157959,0.5672345,96869.0,96868.0,0.0130177]
[1739732158161,0.3608,96869.0,96864.0,0.2064444]
[1739732158362,0.206443,96865.0,96864.0,0.2064444]
[1739732159863,0.207443,96865.0,96864.0,0.2064444]
[1739732160055,0.208443,96865.0,96864.0,0.2064444]
[1739732160261,0.208443,96865.0,96864.0,0.01257569]
[1739732160457,0.002,96865.0,96861.0,0.0316]
[1739732160654,0.2064494,96862.0,96861.0,0.0316]
[1739732161753,0.2064494,96862.0,96861.0,0.03148016]
[1739732162957,0.2074494,96862.0,96861.0,0.03148016]
[1739732163161,0.2074494,96862.0,96861.0,0.03132032]
[1739732163354,0.2084494,96862.0,96861.0,0.03132032]
[1739732163555,0.2084494,96862.0,96861.0,0.03112048]
[1739732164875,0.2084494,96862.0,96861.0,0.03088064]
[1739732165465,0.2084494,96862.0,96861.0,0.0306008]
[1739732166163,0.2084494,96862.0,96861.0,0.03028096]
[1739732166569,0.2084494,96862.0,96861.0,0.02996112]
[1739732168154,0.002,96862.0,96836.0,0.00074027]
[1739732168354,0.2064877,96844.0,96843.0,0.0316]
[1739732169271,0.2064877,96844.0,96843.0,0.04390671]
[1739732169767,0.2074877,96844.0,96843.0,0.07710671]
[1739732170355,0.2084877,96844.0,96843.0,0.07710671]
[1739732170763,0.2074877,96844.0,96843.0,0.07710671]
[1739732170964,0.2084877,96844.0,96843.0,0.07710671]
[1739732171360,0.2084877,96844.0,96843.0,0.07678687]
[1739732172462,0.2084877,96844.0,96843.0,0.04550671]
[1739732174565,0.2084877,96844.0,96843.0,0.07560671]
[1739732181169,0.2084877,96844.0,96843.0,0.04550671]
[1739732181871,0.2084877,96844.0,96843.0,0.0332]
[1739732183063,0.002,96844.0,96838.0,0.01227794]
[1739732183262,0.0636,96843.0,96834.0,0.0313]
[1739732183474,0.0636,96843.0,96834.0,0.03094016]
[1739732183475,0.5673069,96835.0,96834.0,0.03094016]
[1739732184970,0.5683069,96835.0,96834.0,0.03094016]
[1739732187062,0.5683069,96835.0,96820.0,0.3608]
[1739732187063,0.2065218,96828.0,96822.0,0.2065326]
[1739732187266,0.2065218,96828.0,96824.0,0.0621]
[1739732189163,0.2065218,96828.0,96826.0,0.2065256]
[1739732189569,0.2075218,96828.0,96826.0,0.2065256]
[1739732189869,0.2085218,96828.0,96826.0,0.2065256]
[1739732190265,0.2085218,96828.0,96827.0,0.03264]
[1739732190577,0.002,96828.0,96827.0,0.03264]
[1739732191077,0.002,96828.0,96827.0,0.03228016]
[1739732191263,0.002,96828.0,96827.0,0.03188032]
[1739732191668,0.00204,96828.0,96827.0,0.03188032]
[1739732199080,0.00204,96828.0,96827.0,0.03148048]
[1739732202397,0.00204,96828.0,96827.0,0.23800438]
[1739732207487,0.00204,96828.0,96827.0,0.59880438]
[1739732207887,0.00204,96828.0,96827.0,0.23800438]
[1739732208086,0.00204,96828.0,96827.0,0.59880438]
[1739732216301,0.00204,96828.0,96827.0,0.59840454]
[1739732216982,0.00204,96828.0,96827.0,0.90787789]
[1739732219089,0.00204,96828.0,96827.0,0.87679725]
[1739732219903,0.00204,96828.0,96827.0,0.51599725]
[1739732220291,0.00204,96828.0,96827.0,0.30947335]
[1739732220596,0.06764,96828.0,96827.0,0.30947335]
[1739732223997,0.06764,96828.0,96826.0,0.206526]
[1739732224199,0.03474,96828.0,96827.0,0.2065239]
[1739732227905,0.00204,96828.0,96827.0,0.2065239]
[1739732231809,0.00204,96828.0,96827.0,0.20612406]
[1739732238812,0.03098,96843.0,96842.0,0.2064919]
[1739732239601,0.03098,96843.0,96842.0,0.20613206]
[1739732239806,0.03098,96843.0,96835.0,0.0961]
[1739732240011,0.0304,96842.0,96838.0,0.2065001]
[1739732240608,0.0304,96842.0,96840.0,0.2064956]
[1739732240811,0.0304,96842.0,96833.0,0.08064384]
[1739732241012,0.0304,96842.0,96835.0,0.206505]
[1739732241212,0.0304,96842.0,96836.0,0.30949017]
[1739732241714,0.0304,96842.0,96839.0,0.2064978]
[1739732242116,0.0314,96842.0,96840.0,0.001]
[1739732242307,0.0314,96842.0,96840.0,0.10588]
[1739732242612,0.0314,96842.0,96840.0,0.10488]
[1739732243807,0.0314,96842.0,96841.0,0.2064941]
[1739732245116,0.03194,96843.0,96835.0,0.001]
[1739732245416,0.001,96842.0,96841.0,0.3003941]
[1739732246211,0.03194,96843.0,96841.0,0.0929]
[1739732246411,0.03294,96843.0,96842.0,0.2064919]
[1739732246619,0.03194,96843.0,96842.0,0.20613206]
[1739732247622,0.03294,96843.0,96842.0,0.20613206]
[1739732248207,0.03194,96843.0,96842.0,0.20613206]
[1739732248919,0.03294,96843.0,96842.0,0.20713206]
[1739732252818,0.00204,96843.0,96842.0,0.20713206]
[1739732253021,0.00015489,96853.0,96852.0,0.2064706]
[1739732253219,4e-05,96856.0,96852.0,0.3608]
[1739732253521,0.15437803,96867.0,96859.0,0.2064557]
[1739732253721,0.00028,96863.0,96861.0,0.2064515]
[1739732254129,0.00028,96863.0,96861.0,0.2365515]
[1739732254312,0.00028,96863.0,96861.0,0.23627166]
[1739732255014,0.00028,96863.0,96861.0,0.23603182]
[1739732255218,0.00028,96863.0,96861.0,0.23903182]
[1739732255219,0.00228,96862.0,96861.0,0.23903182]
[1739732255524,0.00228,96862.0,96861.0,0.25413975]
[1739732255831,0.00015489,96871.0,96861.0,0.04840777]
[1739732256027,0.00015489,96871.0,96870.0,0.5672323]
[1739732256216,0.00015489,96871.0,96870.0,0.56707246]
[1739732256617,0.0326,96892.0,96879.0,0.2064131]
[1739732256928,0.0326,96892.0,96879.0,0.20629326]
[1739732257423,0.2063943,96888.0,96879.0,0.20629326]
[1739732257618,0.0326,96892.0,96879.0,0.20629326]
[1739732257812,0.00015489,96889.0,96879.0,0.29989326]
[1739732258015,0.00212,96880.0,96879.0,0.29989326]
[1739732258624,0.00412,96880.0,96879.0,0.29989326]
[1739732259029,0.00399984,96880.0,96879.0,0.29989326]
[1739732259616,0.00383968,96880.0,96879.0,0.29989326]
[1739732260229,0.00363952,96880.0,96879.0,0.29989326]
[1739732260830,0.00339936,96880.0,96879.0,0.29989326]
[1739732261516,0.0011192,96880.0,96879.0,0.29989326]
[1739732261719,0.00015489,96889.0,96879.0,0.29989326]
[1739732262119,0.03267984,96885.0,96879.0,0.29989326]
[1739732262521,0.03267984,96885.0,96880.0,0.2064107]
[1739732262829,0.03231968,96885.0,96881.0,0.2064079]
[1739732263427,0.03191952,96885.0,96881.0,0.2064079]
[1739732263626,0.03191952,96885.0,96879.0,0.0936]
[1739732263929,0.03191952,96885.0,96884.0,0.2064024]
[1739732263930,0.03347936,96885.0,96884.0,0.2064024]
[1739732264135,0.03547936,96885.0,96884.0,0.2064024]
[1739732264520,0.0329992,96885.0,96884.0,0.2064024]
[1739732264725,0.0349992,96885.0,96884.0,0.2064024]
[1739732265030,0.0329992,96885.0,96884.0,0.2064024]
[1739732265227,0.03447904,96885.0,96884.0,0.2064024]
[1739732265421,0.03247904,96885.0,96884.0,0.2064024]
[1739732265723,0.004,96885.0,96884.0,0.2064024]
[1739732266323,0.00339984,96885.0,96884.0,0.2064024]
[1739732266628,0.00015489,96889.0,96879.0,0.0936]
[1739732266824,0.00015489,96889.0,96888.0,0.567194]
[1739732267131,0.00106337,96893.0,96892.0,0.2063855]
[1739732267631,0.00038321,96893.0,96892.0,0.2063855]
[1739732268224,0.0010433,96902.0,96895.0,0.2063791]
[1739732270530,0.00015489,96902.0,96901.0,0.2063663]
[1739732271722,0.00115489,96902.0,96901.0,0.22142688]
[1739732272129,0.00215489,96902.0,96901.0,0.22142688]
[1739732272935,0.0316,96914.0,96913.0,0.2063407]
[1739732274419,0.0416,96914.0,96913.0,0.2063407]
[1739732275439,0.01,96914.0,96913.0,0.2063407]
[1739732275935,0.00016,96920.0,96917.0,0.2063322]
[1739732276127,0.00016,96920.0,96917.0,0.5671322]
[1739732277334,4e-05,96925.0,96924.0,0.2063173]
[1739732278040,0.0331,96939.0,96920.0,0.031]
[1739732278233,0.0331,96939.0,96934.0,0.206296]
[1739732278435,8e-05,96937.0,96934.0,0.206296]
[1739732279334,0.00404,96935.0,96934.0,0.22194806]
[1739732280930,0.00404,96935.0,96934.0,0.22294806]
[1739732288047,0.00404,96935.0,96934.0,0.01665206]
[1739732288344,0.03474,96935.0,96934.0,0.01665206]
[1739732292749,0.03474,96935.0,96934.0,0.22294806]
[1739732293147,0.00404,96935.0,96934.0,0.22294806]
[1739732307656,0.00404,96935.0,96934.0,0.46935275]
[1739732311168,0.00404,96935.0,96934.0,0.22294806]
[1739732312872,0.0316,96951.0,96943.0,0.2062769]
[1739732313060,0.0323,96950.0,96943.0,0.5670769]
[1739732344589,1e-08,96944.0,96943.0,0.5670769]
[1739732345186,1e-08,96944.0,96943.0,0.6324769]
[1739732347183,4e-05,96955.0,96954.0,0.2062535]
[1739732347493,4e-05,96955.0,96954.0,0.5670535]
[1739732350493,0.03304,96955.0,96954.0,0.5670535]
[1739732352492,0.06494,96955.0,96954.0,0.3608]
[1739732359189,0.06494,96955.0,96954.0,0.5670535]
[1739732361296,0.206262,96950.0,96949.0,0.30890853]
[1739732364397,0.206262,96950.0,96947.0,0.24728275]
[1739732365306,0.2062663,96948.0,96947.0,0.24728275]
[1739732367707,0.2062663,96948.0,96946.0,0.2062698]
[1739732367903,0.033,96947.0,96946.0,0.2062698]
[1739732368701,0.2392684,96947.0,96946.0,0.2062698]
[1739732369399,0.3938,96947.0,96945.0,0.24743747]
[1739732369598,0.2062705,96946.0,96945.0,0.24743747]
[1739732370406,0.2062705,96946.0,96945.0,0.00015472]
[1739732372109,0.206311,96927.0,96915.0,0.36084]
[1739732372410,0.567111,96927.0,96915.0,0.36084]
[1739732372609,0.567111,96927.0,96925.0,0.01346647]
[1739732373406,0.567111,96927.0,96926.0,0.27145878]
[1739732373612,0.3608,96927.0,96920.0,0.01330194]
[1739732373813,0.2063258,96920.0,96917.0,0.00019472]
[1739732374210,0.3608,96920.0,96917.0,0.00019472]
[1739732374405,0.2063301,96918.0,96917.0,0.00019472]
[1739732374613,0.2063301,96918.0,96917.0,0.01632111]
[1739732375404,0.2063301,96918.0,96917.0,0.02332111]
[1739732376012,0.2063301,96918.0,96917.0,0.01632111]
[1739732376407,0.2063301,96918.0,96917.0,0.01632171]
[1739732376611,0.2063301,96918.0,96917.0,0.00019472]